fUST/lending_fUST_20241111
["ID","MTS","AMOUNT","RATE_DAILY","PERIOD"]
[341891832,1731271832332,-309.09841217,0.000244,3]
[341891834,1731271832342,-300.0,0.00024556,2]
[341891836,1731271832351,-300.0,0.00024556,2]
[341891838,1731271832361,-708.86910415,0.00024557,2]
[341891840,1731271832371,-1000.0,0.00024557,2]
[341891842,1731271832380,-9248.20076227,0.00024557,3]
[341891845,1731271832401,-291.0020642,0.00024557,3]
[341891848,1731271832412,-1023.09635164,0.00024557,3]
[341891935,1731271838472,-363.58238523,0.00024557,3]
[341891937,1731271838483,-5985.31933765,0.00024557,3]
[341891940,1731271838495,-1088.31300196,0.00024557,3]
[341891942,1731271838505,-925.73882616,0.00024557,3]
[341891945,1731271838528,-1345.2756967,0.00024557,3]
[341891948,1731271838540,-2375.1,0.00024557,3]
[341891950,1731271838551,-424.30184868,0.00024557,3]
[341892343,1731271842443,-333.09325293,0.00024557,3]
[341892345,1731271842454,-503.01188397,0.00024557,3]
[341892348,1731271842467,-7229.40528191,0.00024557,3]
[341892350,1731271842478,-3896.97119593,0.00024557,3]
[341892352,1731271842487,-1000.0,0.00024557,2]
[341892354,1731271842496,-181.923,0.00024557,7]
[341892356,1731271842505,-1534.68080946,0.00024557,2]
[341892358,1731271842516,-319.77356902,0.00024557,2]
[341892359,1731271842525,-2559.47623232,0.00024557,2]
[341892361,1731271842534,-152.0,0.00024646,2]
[341892363,1731271842543,-579.5748402,0.00024647,3]
[341892368,1731271842573,-312.57157725,0.00024647,3]
[341892467,1731271843395,-206.16358255,0.00024647,3]
[341892469,1731271843405,-549.15,0.00024647,3]
[341892471,1731271843415,-274.58,0.00024647,3]
[341892473,1731271843424,-823.74,0.00024647,3]
[341892475,1731271843433,-500.0,0.00024656,2]
[341892477,1731271843443,-552.60868621,0.00024656,2]
[341892479,1731271843452,-500.0,0.00024656,2]
[341892481,1731271843461,-496.92629649,0.00024657,2]
[341892483,1731271843472,-61332.000006,0.00024657,2]
[341892486,1731271843487,-1977.575,0.00024657,2]
[341892488,1731271843497,-795931.50282887,0.00024657,2]
[341892491,1731271843518,-6504.11305939,0.00024657,2]
[341893485,1731271904719,153.0,0.00021971,2]
[341893486,1731271904941,153.0,0.00021971,2]
[341893487,1731271906344,179.737,0.00021973,2]
[341893488,1731271908362,153.0,0.0002197,2]
[341893489,1731271922521,-258.57512,0.0002215,2]
[341893490,1731271922578,-657.88218977,0.0002215,2]
[341893491,1731271922630,-252.81352356,0.0002215,2]
[341893492,1731271922661,-187.28,0.00023662,2]
[341893493,1731271922690,-217.78866621,0.00023671,2]
[341893494,1731271922740,-82.21133379,0.00023671,2]
[341893495,1731271922771,-286.90200567,0.00023672,2]
[341893496,1731271922818,-486.164514,0.00023672,2]
[341893497,1731271922883,-651.090426,0.00023672,2]
[341893498,1731271922927,-509.907436,0.00023672,2]
[341893499,1731271969041,153.0,0.00021962,2]
[341893500,1731271969252,153.0,0.00021962,2]
[341893501,1731271973854,153.0,0.00021961,2]
[341893502,1731272025298,153.0,0.00021954,2]
[341893503,1731272025523,153.0,0.00021954,2]
[341893504,1731272029109,153.0,0.00021953,2]
[341893506,1731272086425,153.0,0.00021945,2]
[341893507,1731272086797,153.0,0.00021945,2]
[341893508,1731272148564,153.0,0.00021936,2]
[341893511,1731272403863,-1169.27083333,0.00022147,2]
[341893512,1731272438738,-204.025162,0.00022319,2]
[341893513,1731272438775,-172.556524,0.00022713,2]
[341893514,1731272438806,-592.901034,0.00023203,2]
[341893515,1731272438842,-176.218036,0.00023306,2]
[341893516,1731272438876,-3094.165494,0.00023336,2]
[341893517,1731272438907,-3760.13375,0.00023435,2]
[341893518,1731272482255,-1169.27083333,0.00022148,2]
[341893519,1731272500815,-3967.86625,0.00023435,2]
[341893520,1731272504679,153.0,0.00021921,2]
[341893521,1731272525892,-1169.27083333,0.00022148,2]
[341893522,1731272549773,165.421131,0.00013973,2]
[341893523,1731272569878,153.0,0.00021912,2]
[341893524,1731272625138,153.0,0.00021904,2]
[341893526,1731272689371,153.0,0.00021895,2]
[341893553,1731272993246,204.025162,0.00021918,2]
[341893554,1731273005003,-174.288837,0.0002235,2]
[341893555,1731273005037,-555.40565707,0.00022512,2]
[341893556,1731273005079,-729.69449407,0.00022512,2]
[341893557,1731273005131,-558.02732486,0.00022512,2]
[341893586,1731273032673,156.612,0.0002852,120]
[341893593,1731273035792,-1169.27083333,0.00022507,2]
[341893594,1731273035803,-219.64952,0.00022512,2]
[341893595,1731273035813,-165.421131,0.00022759,2]
[341893596,1731273035823,-300.0,0.00023117,2]
[341893597,1731273035833,-300.0,0.00023117,2]
[341893598,1731273035842,-24900.0,0.00023118,2]
[341893599,1731273035852,-250.0,0.00023182,2]
[341893600,1731273035862,-609.82908479,0.00023197,2]
[341893601,1731273035874,-613.3742875,0.00023197,2]
[341893602,1731273035886,-839.57362371,0.00023197,2]
[341893603,1731273035895,-401.5031039,0.00023452,2]
[341893604,1731273035904,-181.924,0.00023746,4]
[341893605,1731273035914,-3870.25861753,0.00023782,2]
[341893606,1731273035923,-2062.776996,0.00023882,2]
[341893607,1731273035937,-805.78962826,0.000241,2]
[341893608,1731273035949,-466.05921774,0.000241,2]
[341893609,1731273035958,-317.68460528,0.00024487,2]
[341893610,1731273036188,-492.43695665,0.00024487,2]
[341893611,1731273036198,-11303.34268126,0.00024488,2]
[341893612,1731273036210,-791.44522548,0.00024488,2]
[341893662,1731273038778,-996.23551761,0.00024488,2]
[341893664,1731273038789,-1072.50518786,0.00024488,2]
[341893665,1731273038801,-5836.47138679,0.00024488,2]
[341893666,1731273038810,-737.7,0.00024547,3]
[341893667,1731273038819,-368.85,0.00024547,3]
[341893668,1731273038838,-184.42,0.00024547,3]
[341893669,1731273038850,-553.29,0.00024547,3]
[341893670,1731273038860,-6713.53465966,0.00024557,2]
[341893671,1731273038870,-1000.0,0.00024557,2]
[341893672,1731273038880,-21822.74943207,0.00024557,3]
[341893680,1731273039094,-3530.65122816,0.00024557,3]
[341893682,1731273039106,-7900.0,0.00024557,3]
[341893687,1731273039143,-5521.39,0.00024557,3]
[341893689,1731273039155,-15800.0,0.00024557,3]
[341894054,1731273042571,-980.20933977,0.00024557,3]
[341894056,1731273042581,-1381.21272855,0.00024557,2]
[341894058,1731273042590,-2741.36200862,0.00024557,2]
[341894060,1731273042599,-414.32263164,0.00024656,2]
[341894062,1731273042609,-12190.04728864,0.00024656,2]
[341894064,1731273042618,-500.0,0.00024656,2]
[341894067,1731273042629,-500.0,0.00024656,2]
[341894088,1731273042810,-500.0,0.00024656,2]
[341894091,1731273042821,-500.0,0.00024656,2]
[341894093,1731273042831,-500.0,0.00024656,2]
[341894095,1731273042840,-500.0,0.00024656,2]
[341894098,1731273042850,-181.95119798,0.00024656,2]
[341894100,1731273042860,-500.0,0.00024656,2]
[341894102,1731273042869,-500.0,0.00024656,2]
[341894104,1731273042878,-500.0,0.00024656,2]
[341894105,1731273042887,-500.0,0.00024656,2]
[341894107,1731273042896,-500.0,0.00024656,2]
[341894109,1731273042905,-500.0,0.00024656,2]
[341894112,1731273042915,-500.0,0.00024656,2]
[341894114,1731273042924,-18711.49108138,0.00024657,2]
[341894118,1731273042947,-7900.0,0.00024657,2]
[341894120,1731273042959,-695.70864234,0.00024657,2]
[341894157,1731273043472,-3945.5,0.00024657,2]
[341894160,1731273043484,-474789.49605727,0.00024657,2]
[341894161,1731273043494,-512.65800631,0.00024657,2]
[341894163,1731273043504,-500.0,0.00024657,2]
[341894166,1731273043514,-420.4464469,0.00024657,2]
[341894168,1731273043524,-510.55404762,0.00024657,2]
[341894170,1731273043534,-500.0,0.00024657,2]
[341894172,1731273043543,-500.0,0.00024657,2]
[341894174,1731273043553,-151.0,0.00024657,7]
[341894176,1731273043562,-151.0,0.00024657,7]
[341894178,1731273043572,-151.0,0.00024657,7]
[341894180,1731273043581,-500.0,0.00024657,2]
[341894181,1731273043590,-500.0,0.00024657,2]
[341894183,1731273043599,-500.0,0.00024657,2]
[341894185,1731273043609,-500.0,0.00024657,2]
[341894187,1731273043619,-500.0,0.00024657,2]
[341894189,1731273043629,-500.0,0.00024657,2]
[341894191,1731273043638,-500.0,0.00024657,2]
[341894193,1731273043648,-500.81312293,0.00024657,2]
[341894196,1731273043657,-502.76298619,0.00024657,2]
[341894198,1731273043667,-500.0,0.00024657,2]
[341894200,1731273043676,-500.0,0.00024657,2]
[341894201,1731273043686,-500.0,0.00024657,2]
[341894203,1731273043695,-500.0,0.00024657,2]
[341894205,1731273043705,-500.0,0.00024657,2]
[341894207,1731273043715,-500.0,0.00024657,2]
[341894209,1731273043725,-500.0,0.00024657,2]
[341894211,1731273043735,-500.0,0.00024657,2]
[341894213,1731273043744,-500.0,0.00024657,2]
[341894216,1731273043754,-500.0,0.00024657,2]
[341894217,1731273043763,-501.12035207,0.00024657,2]
[341894219,1731273043773,-500.0,0.00024657,2]
[341894221,1731273043783,-519.24888867,0.00024657,2]
[341894223,1731273043792,-500.0,0.00024657,2]
[341894225,1731273043802,-500.0,0.00024657,2]
[341894228,1731273043812,-500.0,0.00024657,2]
[341894230,1731273043821,-501.33652771,0.00024657,2]
[341894232,1731273043830,-500.98864187,0.00024657,2]
[341894234,1731273043839,-503.37395947,0.00024657,2]
[341894236,1731273043849,-500.0,0.00024657,2]
[341894238,1731273043858,-151.0,0.00024657,7]
[341894240,1731273043867,-500.0,0.00024657,2]
[341894242,1731273043876,-251.34457677,0.00024657,2]
[341894244,1731273043886,-500.0,0.00024657,2]
[341894246,1731273043895,-500.0,0.00024657,2]
[341894248,1731273043904,-500.0,0.00024657,2]
[341894250,1731273043914,-500.0,0.00024657,2]
[341894252,1731273043923,-151.0,0.00024657,7]
[341894254,1731273043933,-500.0,0.00024657,2]
[341894255,1731273043944,-500.0,0.00024657,2]
[341894258,1731273043954,-500.0,0.00024657,2]
[341894260,1731273043963,-528.86921381,0.00024657,2]
[341894262,1731273043973,-457.33165542,0.00024657,2]
[341894263,1731273043982,-500.0,0.00024657,2]
[341894265,1731273043991,-500.0,0.00024657,2]
[341894267,1731273044001,-500.0,0.00024657,2]
[341894270,1731273044016,-500.0,0.00024657,2]
[341894272,1731273044025,-151.0,0.00024657,7]
[341894274,1731273044035,-500.0,0.00024657,2]
[341894276,1731273044044,-500.0,0.00024657,2]
[341894278,1731273044054,-500.0,0.00024657,2]
[341894280,1731273044066,-500.0,0.00024657,2]
[341894282,1731273044076,-500.0,0.00024657,2]
[341894283,1731273044085,-500.0,0.00024657,2]
[341894285,1731273044094,-584.96079147,0.00024657,2]
[341894287,1731273044104,-500.0,0.00024657,2]
[341894289,1731273044114,-500.0,0.00024657,2]
[341894292,1731273044124,-472.09685805,0.00024657,2]
[341894293,1731273044133,-500.0,0.00024657,2]
[341894296,1731273044145,-500.0,0.00024657,2]
[341894297,1731273044155,-151.0,0.00024657,7]
[341894299,1731273044165,-311.76168722,0.00024657,2]
[341894302,1731273044175,-500.0,0.00024657,2]
[341894304,1731273044187,-500.0,0.00024657,2]
[341894305,1731273044202,-500.0,0.00024657,2]
[341894308,1731273044212,-500.0,0.00024657,2]
[341894310,1731273044222,-500.0,0.00024657,2]
[341894312,1731273044231,-500.0,0.00024657,2]
[341894313,1731273044240,-500.0,0.00024657,2]
[341894315,1731273044250,-500.0,0.00024657,2]
[341894317,1731273044259,-529.89562833,0.00024657,2]
[341894319,1731273044268,-500.0,0.00024657,2]
[341894321,1731273044278,-500.0,0.00024657,2]
[341894323,1731273044289,-500.0,0.00024657,2]
[341894325,1731273044299,-500.0,0.00024657,2]
[341894327,1731273044308,-500.0,0.00024657,2]
[341894330,1731273044318,-500.0,0.00024657,2]
[341894331,1731273044328,-514.34053155,0.00024657,2]
[341894334,1731273044337,-500.0,0.00024657,2]
[341894335,1731273044347,-500.0,0.00024657,2]
[341894337,1731273044356,-151.0,0.00024657,7]
[341894339,1731273044366,-500.0,0.00024657,2]
[341894341,1731273044376,-500.0,0.00024657,2]
[341894344,1731273044386,-151.0,0.00024657,7]
[341894346,1731273044396,-500.0,0.00024657,2]
[341894348,1731273044405,-500.0,0.00024657,2]
[341894350,1731273044415,-747.296962,0.00024657,7]
[341894351,1731273044425,-500.0,0.00024657,2]
[341894353,1731273044438,-500.0,0.00024657,2]
[341894355,1731273044448,-747.296962,0.00024657,7]
[341894358,1731273044458,-500.0,0.00024657,2]
[341894360,1731273044468,-500.0,0.00024657,2]
[341894362,1731273044478,-500.0,0.00024657,2]
[341894364,1731273044487,-500.0,0.00024657,2]
[341894366,1731273044497,-500.0,0.00024657,2]
[341894368,1731273044507,-500.0,0.00024657,2]
[341894370,1731273044516,-500.0,0.00024657,2]
[341894372,1731273044526,-151.0,0.00024657,7]
[341894374,1731273044535,-500.0,0.00024657,2]
[341894376,1731273044544,-559.4747919,0.00024657,2]
[341894378,1731273044554,-500.0,0.00024657,2]
[341894380,1731273044563,-500.0,0.00024657,2]
[341894382,1731273044572,-500.0,0.00024657,2]
[341894384,1731273044581,-500.0,0.00024657,2]
[341894386,1731273044591,-1000.0,0.00024657,2]
[341894388,1731273044601,-500.0,0.00024657,2]
[341894390,1731273044610,-504.33165832,0.00024657,2]
[341894392,1731273044619,-498.0,0.00024657,2]
[341894394,1731273044629,-500.0,0.00024657,2]
[341894396,1731273044638,-500.0,0.00024657,2]
[341894398,1731273044648,-500.0,0.00024657,2]
[341894400,1731273044658,-500.0,0.00024657,2]
[341894402,1731273044667,-500.0,0.00024657,2]
[341894404,1731273044677,-500.0,0.00024657,2]
[341894406,1731273044690,-500.0,0.00024657,2]
[341894408,1731273044699,-151.0,0.00024657,7]
[341894410,1731273044708,-500.0,0.00024657,2]
[341894412,1731273044718,-151.0,0.00024657,7]
[341894414,1731273044727,-524.33121824,0.00024657,2]
[341894416,1731273044737,-505.79814864,0.00024657,2]
[341894418,1731273044747,-597.06911516,0.00024657,2]
[341894420,1731273044757,-500.0,0.00024657,2]
[341894422,1731273044766,-500.0,0.00024657,2]
[341894424,1731273044775,-500.0,0.00024657,2]
[341894426,1731273044785,-500.0,0.00024657,2]
[341894428,1731273044795,-500.0,0.00024657,2]
[341894430,1731273044804,-500.0,0.00024657,2]
[341894432,1731273044814,-500.0,0.00024657,2]
[341894434,1731273044823,-500.0,0.00024657,2]
[341894436,1731273044832,-500.0,0.00024657,2]
[341894438,1731273044842,-500.0,0.00024657,2]
[341894440,1731273044851,-500.0,0.00024657,2]
[341894442,1731273044861,-500.0,0.00024657,2]
[341894444,1731273044871,-500.0,0.00024657,2]
[341894446,1731273044880,-500.0,0.00024657,2]
[341894448,1731273044890,-500.0,0.00024657,2]
[341894450,1731273044899,-500.0,0.00024657,2]
[341894452,1731273044908,-500.0,0.00024657,2]
[341894454,1731273044918,-508.11079729,0.00024657,2]
[341894456,1731273044928,-158.30471881,0.00024657,2]
[341894458,1731273044939,-500.0,0.00024657,2]
[341894460,1731273044948,-500.0,0.00024657,2]
[341894462,1731273044957,-500.0,0.00024657,2]
[341894464,1731273044967,-511.90647235,0.00024657,2]
[341894466,1731273044977,-503.5312384,0.00024657,2]
[341894468,1731273044986,-500.0,0.00024657,2]
[341894470,1731273044995,-500.0,0.00024657,2]
[341894472,1731273045005,-500.0,0.00024657,2]
[341894474,1731273045017,-422.63512285,0.00024657,2]
[341894476,1731273045027,-500.0,0.00024657,2]
[341894478,1731273045036,-406.63178476,0.00024657,2]
[341894480,1731273045045,-500.0,0.00024657,2]
[341894482,1731273045057,-503.06219977,0.00024657,2]
[341894484,1731273045069,-500.0,0.00024657,2]
[341894486,1731273045079,-163.82883108,0.00024657,2]
[341894488,1731273045088,-500.0,0.00024657,2]
[341894490,1731273045098,-1514.356221,0.00024657,7]
[341894492,1731273045107,-500.0,0.00024657,2]
[341894494,1731273045117,-595.45329268,0.00024657,2]
[341894496,1731273045126,-1514.356221,0.00024657,7]
[341894498,1731273045135,-500.0,0.00024657,2]
[341894500,1731273045147,-500.0,0.00024657,2]
[341894502,1731273045156,-500.0,0.00024657,2]
[341894515,1731273045277,-500.0,0.00024657,2]
[341894517,1731273045287,-500.0,0.00024657,2]
[341894519,1731273045296,-500.0,0.00024657,2]
[341894521,1731273045305,-500.0,0.00024657,2]
[341894523,1731273045315,-223.345004,0.00024657,7]
[341894525,1731273045324,-500.0,0.00024657,2]
[341894527,1731273045334,-500.0,0.00024657,2]
[341894529,1731273045344,-223.345004,0.00024657,7]
[341894531,1731273045353,-500.0,0.00024657,2]
[341894533,1731273045362,-500.0,0.00024657,2]
[341894535,1731273045373,-500.0,0.00024657,2]
[341894537,1731273045383,-500.0,0.00024657,2]
[341894539,1731273045393,-500.0,0.00024657,2]
[341894541,1731273045403,-500.0,0.00024657,2]
[341894543,1731273045412,-500.0,0.00024657,2]
[341894545,1731273045421,-500.0,0.00024657,2]
[341894547,1731273045431,-429.87334161,0.00024657,2]
[341894549,1731273045443,-515.2669321,0.00024657,2]
[341894551,1731273045452,-500.0,0.00024657,2]
[341894553,1731273045461,-507.84266072,0.00024657,2]
[341894555,1731273045470,-500.0,0.00024657,2]
[341894557,1731273045480,-162.428473,0.00024657,7]
[341894559,1731273045489,-500.0,0.00024657,2]
[341894561,1731273045498,-502.48180392,0.00024657,2]
[341894563,1731273045508,-500.0,0.00024657,2]
[341894565,1731273045518,-518.50551859,0.00024657,2]
[341894567,1731273045527,-162.428473,0.00024657,7]
[341894569,1731273045536,-500.0,0.00024657,2]
[341894571,1731273045546,-196.58034146,0.00024657,2]
[341894573,1731273045555,-500.0,0.00024657,2]
[341894575,1731273045565,-500.0,0.00024657,2]
[341894576,1731273045575,-500.0,0.00024657,2]
[341894577,1731273045585,-500.0,0.00024657,2]
[341894578,1731273045595,-500.0,0.00024657,2]
[341894579,1731273045605,-500.0,0.00024657,2]
[341894580,1731273045615,-500.0,0.00024657,2]
[341894581,1731273045626,-500.0,0.00024657,2]
[341894583,1731273045636,-250.99455479,0.00024657,2]
[341894586,1731273045646,-500.0,0.00024657,2]
[341894588,1731273045656,-500.0,0.00024657,2]
[341894590,1731273045666,-500.0,0.00024657,2]
[341894591,1731273045676,-540.45251602,0.00024657,2]
[341894593,1731273045689,-500.0,0.00024657,2]
[341894595,1731273045698,-500.0,0.00024657,2]
[341894597,1731273045708,-500.0,0.00024657,2]
[341894599,1731273045719,-500.0,0.00024657,2]
[341894601,1731273045729,-500.0,0.00024657,2]
[341894603,1731273045739,-295.36527639,0.00024657,2]
[341894605,1731273045750,-500.0,0.00024657,2]
[341894608,1731273045760,-501.98856022,0.00024657,2]
[341894610,1731273045770,-500.0,0.00024657,2]
[341894612,1731273045779,-500.0,0.00024657,2]
[341894615,1731273045789,-500.0,0.00024657,2]
[341894617,1731273045799,-343.48623869,0.00024657,2]
[341894618,1731273045809,-500.0,0.00024657,2]
[341894620,1731273045818,-500.0,0.00024657,2]
[341894622,1731273045828,-500.0,0.00024657,2]
[341894624,1731273045837,-500.0,0.00024657,2]
[341894626,1731273045847,-500.0,0.00024657,2]
[341894629,1731273045857,-502.10736156,0.00024657,2]
[341894632,1731273045866,-600.15579349,0.00024657,2]
[341894635,1731273045875,-500.0,0.00024657,2]
[341894638,1731273045885,-500.0,0.00024657,2]
[341894640,1731273045895,-500.0,0.00024657,2]
[341894643,1731273045905,-500.0,0.00024657,2]
[341894645,1731273045915,-180.38531866,0.00024657,2]
[341894647,1731273045925,-500.0,0.00024657,2]
[341894649,1731273045938,-500.0,0.00024657,2]
[341894651,1731273045949,-500.0,0.00024657,2]
[341894653,1731273045958,-527.50004315,0.00024657,2]
[341894655,1731273045968,-500.0,0.00024657,2]
[341894658,1731273045978,-500.0,0.00024657,2]
[341894661,1731273045988,-500.0,0.00024657,2]
[341894663,1731273045997,-500.0,0.00024657,2]
[341894665,1731273046008,-524.92,0.00024657,2]
[341894667,1731273046021,-500.0,0.00024657,2]
[341894670,1731273046031,-500.0,0.00024657,2]
[341894672,1731273046041,-708.58,0.00024657,2]
[341894674,1731273046052,-500.0,0.00024657,2]
[341894676,1731273046064,-500.0,0.00024657,2]
[341894677,1731273046074,-500.0,0.00024657,2]
[341894680,1731273046085,-500.0,0.00024657,2]
[341894682,1731273046095,-500.0,0.00024657,2]
[341894684,1731273046106,-500.0,0.00024657,2]
[341894686,1731273046116,-500.0,0.00024657,2]
[341894688,1731273046126,-500.0,0.00024657,2]
[341894690,1731273046138,-500.0,0.00024657,2]
[341894692,1731273046149,-500.0,0.00024657,2]
[341894694,1731273046159,-500.0,0.00024657,2]
[341894696,1731273046170,-500.0,0.00024657,2]
[341894698,1731273046180,-500.0,0.00024657,2]
[341894700,1731273046193,-500.0,0.00024657,2]
[341894702,1731273046205,-511.45859781,0.00024657,2]
[341894704,1731273046215,-500.0,0.00024657,2]
[341894706,1731273046226,-500.0,0.00024657,2]
[341894709,1731273046237,-500.0,0.00024657,2]
[341894711,1731273046249,-500.0,0.00024657,2]
[341894713,1731273046259,-500.0,0.00024657,2]
[341894715,1731273046270,-500.0,0.00024657,2]
[341894717,1731273046280,-500.0,0.00024657,2]
[341894719,1731273046291,-500.0,0.00024657,2]
[341894721,1731273046302,-500.0,0.00024657,2]
[341894723,1731273046312,-500.0,0.00024657,2]
[341894725,1731273046322,-500.0,0.00024657,2]
[341894727,1731273046332,-500.0,0.00024657,2]
[341894729,1731273046343,-500.0,0.00024657,2]
[341894731,1731273046353,-500.0,0.00024657,2]
[341894733,1731273046363,-500.0,0.00024657,2]
[341894735,1731273046373,-500.0,0.00024657,2]
[341894737,1731273046384,-621.4129486,0.00024657,2]
[341894739,1731273046394,-500.0,0.00024657,2]
[341894741,1731273046405,-500.33136084,0.00024657,2]
[341894743,1731273046415,-500.0,0.00024657,2]
[341894745,1731273046425,-506.23719266,0.00024657,2]
[341894747,1731273046437,-500.0,0.00024657,2]
[341894749,1731273046448,-500.0,0.00024657,2]
[341894751,1731273046458,-501.67287588,0.00024657,2]
[341894753,1731273046468,-500.0,0.00024657,2]
[341894755,1731273046479,-323.051993,0.00024657,2]
[341894757,1731273046489,-500.0,0.00024657,2]
[341894759,1731273046499,-500.0,0.00024657,2]
[341894762,1731273046510,-500.0,0.00024657,2]
[341894764,1731273046520,-500.0,0.00024657,2]
[341894766,1731273046531,-323.051993,0.00024657,2]
[341894768,1731273046541,-500.0,0.00024657,2]
[341894770,1731273046550,-500.0,0.00024657,2]
[341894772,1731273046559,-500.0,0.00024657,2]
[341894774,1731273046569,-500.0,0.00024657,2]
[341894775,1731273046576,-1193.73,0.00024657,2]
[341894777,1731273046586,-500.0,0.00024657,2]
[341894779,1731273046596,-500.0,0.00024657,2]
[341894781,1731273046606,-500.0,0.00024657,2]
[341894783,1731273046617,-500.0,0.00024657,2]
[341894785,1731273046627,-512.22103537,0.00024657,2]
[341894787,1731273046636,-500.0,0.00024657,2]
[341894789,1731273046646,-503.18849871,0.00024657,2]
[341894791,1731273046656,-500.0,0.00024657,2]
[341894793,1731273046666,-500.0,0.00024657,2]
[341894795,1731273046676,-500.0,0.00024657,2]
[341894798,1731273046688,-500.0,0.00024657,2]
[341894800,1731273046698,-500.0,0.00024657,2]
[341894802,1731273046708,-161.1951441,0.00024657,2]
[341894804,1731273046719,-500.0,0.00024657,2]
[341894806,1731273046729,-500.0,0.00024657,2]
[341894808,1731273046739,-500.0,0.00024657,2]
[341894810,1731273046748,-500.0,0.00024657,2]
[341894812,1731273046758,-229.6212196,0.00024657,2]
[341894814,1731273046769,-500.0,0.00024657,2]
[341894816,1731273046779,-500.0,0.00024657,2]
[341894818,1731273046789,-507.52098236,0.00024657,2]
[341894820,1731273046799,-500.0,0.00024657,2]
[341894822,1731273046809,-500.0,0.00024657,2]
[341894824,1731273046819,-500.0,0.00024657,2]
[341894826,1731273046829,-501.39985894,0.00024657,2]
[341894828,1731273046839,-500.0,0.00024657,2]
[341894830,1731273046850,-500.0,0.00024657,2]
[341894832,1731273046859,-500.0,0.00024657,2]
[341894834,1731273046870,-530.32389434,0.00024657,2]
[341894836,1731273046879,-500.0,0.00024657,2]
[341894838,1731273046890,-500.0,0.00024657,2]
[341894840,1731273046900,-500.0,0.00024657,2]
[341894842,1731273046910,-500.0,0.00024657,2]
[341894844,1731273046920,-500.0,0.00024657,2]
[341894846,1731273046930,-151.0,0.00024657,7]
[341894848,1731273046942,-500.0,0.00024657,2]
[341894850,1731273046953,-500.0,0.00024657,2]
[341894853,1731273046964,-500.0,0.00024657,2]
[341894855,1731273046974,-500.0,0.00024657,2]
[341894857,1731273046984,-500.0,0.00024657,2]
[341894859,1731273046993,-500.0,0.00024657,2]
[341894861,1731273047003,-500.0,0.00024657,2]
[341894863,1731273047014,-500.0,0.00024657,2]
[341894864,1731273047023,-310.84734331,0.00024657,2]
[341894867,1731273047033,-544.55855869,0.00024657,2]
[341894868,1731273047043,-450.819951,0.00024657,7]
[341894870,1731273047053,-500.0,0.00024657,2]
[341894873,1731273047063,-513.84660173,0.00024657,2]
[341894875,1731273047073,-500.0,0.00024657,2]
[341894877,1731273047082,-513.06268591,0.00024657,2]
[341894879,1731273047091,-151.0,0.00024657,7]
[341894880,1731273047102,-570.14155393,0.00024657,2]
[341894883,1731273047112,-500.0,0.00024657,2]
[341894885,1731273047122,-500.0,0.00024657,2]
[341894887,1731273047132,-500.0,0.00024657,2]
[341894889,1731273047142,-450.819951,0.00024657,7]
[341894891,1731273047151,-514.78,0.00024657,2]
[341894893,1731273047160,-500.0,0.00024657,2]
[341894895,1731273047169,-500.0,0.00024657,2]